bitfinex/quotes_ETHUSD_20240810
["timestamp","ask_amount","ask_price","bid_price","bid_amount"]
[1723263645372,11.12647,2606.6,2606.0,0.06531441]
[1723263645373,2.3458,2606.6,2606.2,7.67382]
[1723263645530,2.3458,2606.6,2606.3,0.55]
[1723263645735,2.3458,2606.6,2606.3,4.38673]
[1723263645973,2.3458,2606.6,2606.4,3.90200441]
[1723263646280,2.3458,2606.6,2606.4,0.06531441]
[1723263646459,2.97788,2606.6,2606.4,0.06531441]
[1723263646648,2.3458,2606.6,2606.4,0.06531441]
[1723263648058,2.3458,2606.6,2606.4,3.90201441]
[1723263650285,6.18221,2606.6,2606.4,0.06531441]
[1723263651455,2.3458,2606.6,2606.4,0.06531441]
[1723263653570,3.975,2606.7,2606.4,0.06531441]
[1723263653571,6.18236,2606.5,2606.4,0.06531441]
[1723263653777,7.83836,2606.5,2605.8,3.83747]
[1723263653982,1.656,2605.9,2605.8,3.83747]
[1723263654292,1.656,2605.9,2605.8,8.22506]
[1723263654972,2.3458,2606.5,2606.2,3.83692]
[1723263655172,1.656,2606.3,2606.2,3.83692]
[1723263655373,1.656,2606.3,2606.2,4.38692]
[1723263656768,1.656,2606.3,2606.2,0.55]
[1723263657100,1.656,2606.3,2606.1,0.55]
[1723263657284,4.0018,2606.2,2606.0,0.55]
[1723263657479,1.656,2606.1,2605.9,0.55]
[1723263657779,1.656,2606.0,2605.9,0.55]
[1723263658496,1.656,2606.0,2605.9,4.38744]
[1723263658832,1.656,2606.0,2605.9,5.449312]
[1723263659700,2.3458,2606.4,2605.9,5.449312]
[1723263659878,6.18255,2606.4,2605.9,5.449312]
[1723263660283,6.18255,2606.4,2605.9,1.611872]
[1723263660522,6.18255,2606.4,2605.9,0.55]
[1723263660882,10.01935,2606.4,2605.9,0.55]
[1723263661185,6.18255,2606.4,2605.9,0.55]
[1723263661819,3.83718,2606.1,2605.9,0.55]
[1723263661997,6.10618,2606.1,2605.7,0.55]
[1723263662192,2.269,2606.1,2605.7,4.38772]
[1723263665326,2.269,2606.1,2605.7,0.55]
[1723263665923,2.269,2606.1,2605.7,4.38772]
[1723263667319,2.269,2606.1,2605.8,0.05660702]
[1723263667628,3.974,2606.2,2605.9,4.38742]
[1723263667926,3.974,2606.2,2606.0,0.05724836]
[1723263668299,2.269,2606.3,2606.0,0.05724836]
[1723263668722,2.269,2606.3,2606.0,3.89453836]
[1723263669199,2.269,2606.3,2606.0,0.05724836]
[1723263671318,6.243,2606.7,2606.1,6.87542]
[1723263671532,10.07934,2606.7,2606.2,3.83699]
[1723263671912,10.07934,2606.7,2606.3,0.05724836]
[1723263672546,10.07934,2606.7,2606.4,0.55]
[1723263673116,10.07934,2606.7,2606.5,0.05724836]
[1723263673529,6.243,2606.7,2606.3,4.38677]
[1723263673729,6.243,2606.7,2606.6,0.05724836]
[1723263673950,6.243,2606.7,2606.3,4.38684]
[1723263674335,6.243,2606.7,2606.4,0.05724836]
[1723263674542,3.974,2606.7,2606.4,0.05724836]
[1723263674852,3.974,2606.7,2606.4,3.89392836]
[1723263675751,3.974,2606.7,2606.6,2.4884]
[1723263675965,3.83572,2607.1,2606.6,3.0384]
[1723263675966,3.974,2607.0,2606.6,3.0384]
[1723263676170,3.974,2607.0,2606.7,0.55]
[1723263676344,7.80983,2607.0,2606.7,0.55]
[1723263676532,3.974,2607.0,2606.8,0.0566331]
[1723263677048,7.80983,2607.0,2606.9,0.0566331]
[1723263677374,3.974,2607.0,2606.7,0.55]
[1723263677670,3.836,2606.9,2606.5,0.55]
[1723263677966,7.80983,2607.0,2606.5,4.38656]
[1723263678131,7.80983,2607.0,2606.5,5.54054018]
[1723263679732,3.974,2607.0,2606.5,9.37702018]
[1723263679974,3.974,2607.0,2606.5,5.54046018]
[1723263680467,3.974,2607.0,2606.6,0.80288602]
[1723263680672,3.974,2607.0,2606.7,0.55]
[1723263681259,3.974,2607.0,2606.7,0.54862971]
[1723263682497,3.83502,2607.6,2607.0,3.83573]
[1723263682779,3.974,2607.6,2607.1,4.454243]
[1723263682992,3.974,2607.6,2607.1,0.05571461]
[1723263683155,3.974,2607.6,2607.3,10.02158]
[1723263683361,3.974,2607.6,2607.3,6.18628]
[1723263683544,3.974,2607.6,2607.4,0.04854598]
[1723263683744,3.974,2607.6,2607.4,3.88376598]
[1723263683945,3.974,2607.6,2607.5,0.55]
[1723263684380,7.29,2607.8,2607.5,4.42872931]
[1723263685294,4.1003205,2607.9,2607.6,3.83494]
[1723263685502,4.1003205,2607.9,2607.7,0.588853]
[1723263685787,4.1003205,2607.9,2607.7,4.423633]
[1723263686992,4.1003205,2607.9,2607.7,8.258333]
[1723263687144,4.1003205,2607.9,2607.7,8.258253]
[1723263687345,4.1003205,2607.9,2607.7,4.423553]
[1723263687545,0.1263205,2607.9,2607.7,4.423553]
[1723263688352,0.1263205,2607.9,2607.7,6.774553]
[1723263688660,2.4231,2607.8,2607.7,0.038853]
[1723263688863,1.41926405,2607.8,2607.5,3.83499]
[1723263689044,4.1003205,2607.9,2607.6,0.03605184]
[1723263689951,4.1003205,2607.9,2607.4,3.8351]
[1723263690147,7.9348205,2607.9,2607.7,0.03605184]
[1723263690350,7.9348205,2607.9,2607.4,3.8351]
[1723263690351,9.73748155,2607.9,2607.4,3.8351]
[1723263690661,9.73748155,2607.9,2607.5,0.55]
[1723263690935,4.1003205,2607.9,2607.6,0.03605184]
[1723263691214,3.974,2607.7,2607.6,0.03605184]
[1723263693402,3.974,2607.7,2607.4,4.38521]
[1723263693928,3.974,2607.7,2607.5,3.87113184]
[1723263694218,3.974,2607.7,2607.6,2.901]
[1723263694656,3.974,2607.7,2607.6,6.73594]
[1723263694796,3.974,2607.7,2607.6,6.77199184]
[1723263695127,3.974,2607.7,2607.6,4.42099184]
[1723263695328,3.974,2607.7,2607.6,0.58605184]
[1723263696252,3.974,2607.7,2607.6,0.03605184]
[1723263697235,3.974,2607.7,2607.4,0.55]
[1723263697437,3.974,2607.7,2607.6,0.03605184]
[1723263697653,5.39328105,2607.7,2607.4,0.55]
[1723263697938,3.974,2607.7,2607.5,0.03613841]
[1723263698465,3.974,2607.7,2607.3,4.38529]
[1723263698951,3.974,2607.7,2607.4,0.03600856]
[1723263703288,3.974,2607.7,2607.4,3.87122856]
[1723263703470,3.974,2607.7,2607.5,4.38506]
[1723263703980,1.654,2607.6,2607.5,4.38506]
[1723263704184,1.654,2607.6,2607.5,0.55]
[1723263704335,1.654,2607.6,2607.4,0.55]
[1723263704537,1.654,2607.5,2607.4,4.38523]
[1723263705263,1.654,2607.5,2607.4,5.442382]
[1723263709400,1.654,2607.5,2607.4,9.277612]
[1723263709652,0.1263205,2607.9,2607.4,7.697882]
[1723263709782,0.1263205,2607.9,2607.6,3.83492]
[1723263709968,0.1263205,2607.9,2607.7,0.55]
[1723263710161,1.654,2607.8,2607.7,0.55]
[1723263710674,1.654,2607.8,2607.7,4.38471]
[1723263711403,1.654,2607.8,2607.7,0.55]
[1723263712256,4.1009,2607.8,2607.7,0.03598259]
[1723263712607,4.90708105,2607.8,2607.5,0.55]
[1723263712900,1.654,2607.6,2607.4,0.55]
[1723263713204,1.654,2607.5,2607.4,0.55]
[1723263714790,0.1263205,2607.9,2607.5,2.2555]
[1723263714987,0.1263205,2607.9,2607.6,4.38486]
[1723263715720,4.0963205,2607.9,2607.6,4.38486]
[1723263716808,4.0963205,2607.9,2607.6,0.55]
[1723263719641,4.0963205,2607.9,2607.6,4.38492]
[1723263720432,4.0963205,2607.9,2607.6,0.55]
[1723263723335,4.0963205,2607.9,2607.6,4.38494]
[1723263723747,4.0963205,2607.9,2607.6,0.55]
[1723263725516,10.4269405,2607.9,2607.7,0.55]
[1723263725741,10.4269405,2607.9,2607.5,0.55]
[1723263726100,11.85307255,2607.9,2607.5,0.55]
[1723263726496,11.85307255,2607.9,2607.1,5.3907]
[1723263726497,3.97,2607.6,2607.1,5.3907]
[1723263726739,2.496,2607.1,2606.5,2.3907]
[1723263726961,3.83635,2606.7,2606.2,2.3907]
[1723263727259,3.97,2606.9,2606.4,3.8366]
[1723263727473,3.97,2606.9,2606.7,3.83618]
[1723263728827,3.97,2606.9,2606.5,3.83642]
[1723263729015,3.97,2606.9,2606.6,0.55]
[1723263729649,3.97,2606.9,2606.6,4.38637]
[1723263730616,3.97,2606.9,2606.6,0.55]
[1723263731859,3.97,2607.0,2606.7,3.83618]
[1723263732153,3.97,2607.0,2606.8,0.55]
[1723263732596,3.97,2607.0,2606.8,4.38603]
[1723263732749,3.97,2607.3,2606.9,3.83593]
[1723263732956,3.97,2607.3,2607.0,0.55]
[1723263735356,3.83556,2607.2,2606.5,3.83646]
[1723263735557,3.97,2607.0,2606.6,4.38639]
[1723263737270,7.8059,2607.0,2606.6,0.55]
[1723263737594,14.13781,2607.0,2606.5,0.55]
[1723263737796,10.3019,2607.0,2606.5,0.55]
[1723263738292,3.83613,2606.8,2606.3,6.22746]
[1723263739092,3.83642,2606.6,2606.1,6.83706]
[1723263739293,6.33242,2606.6,2606.1,6.83706]
[1723263739852,2.496,2606.6,2606.2,3.837]
[1723263740668,2.496,2606.6,2606.3,0.55]
[1723263741073,6.33243,2606.6,2606.3,0.55]
[1723263741324,7.80679,2606.4,2606.2,0.55]
[1723263741455,7.80679,2606.4,2605.7,3.83764]
[1723263741456,3.83699,2606.3,2605.7,3.83764]
[1723263741911,6.25983,2606.2,2605.7,3.83764]
[1723263742486,3.97,2606.1,2605.5,3.83791]
[1723263742824,3.97,2606.1,2605.0,3.90549912]
[1723263742825,3.97,2605.8,2605.2,3.83846]
[1723263742994,2.4228,2606.2,2604.5,2.32800176]
[1723263742995,3.97,2605.5,2604.5,2.32800176]
[1723263743302,3.83872,2605.1,2604.4,3.83962]
[1723263743516,3.97,2604.9,2604.3,3.83977]
[1723263744302,3.97,2604.9,2604.3,7.67946]
[1723263744606,3.97,2604.9,2604.4,3.0]
[1723263745200,3.97,2604.9,2604.5,0.55]
[1723263745201,7.80893,2604.9,2604.5,0.55]
[1723263745515,3.83924,2604.7,2604.1,6.1012]
[1723263745793,3.83924,2604.7,2604.2,3.83992]
[1723263746656,3.97,2604.6,2604.0,3.84015]
[1723263747011,3.97,2604.6,2603.7,0.5773929]
[1723263747012,6.3928,2604.6,2603.7,0.51056927]
[1723263747299,7.80985,2604.3,2603.6,3.84074]
[1723263747713,3.97,2604.3,2603.8,3.8405]
[1723263747885,3.97,2604.3,2603.9,3.84034]
[1723263748089,3.97,2604.3,2603.8,3.8405]
[1723263749494,3.97,2604.3,2603.9,4.3903]
[1723263750691,3.83883,2605.0,2604.1,2.2612]
[1723263750692,6.26158,2605.0,2604.1,2.2612]
[1723263750935,2.4228,2605.0,2604.4,3.83961]
[1723263751141,2.4228,2605.0,2604.4,3.83956]
[1723263751142,3.97,2604.8,2604.4,3.83956]
[1723263751291,3.97,2604.8,2604.5,4.38941]
[1723263751494,3.97,2604.8,2604.5,0.55]
[1723263752131,3.97,2604.8,2604.5,4.3895]
[1723263752443,3.97,2604.8,2604.5,0.55]
[1723263754101,3.97,2604.8,2604.5,4.38948]
[1723263754346,3.97,2604.8,2604.6,3.83935]
[1723263757136,3.97,2604.8,2604.6,7.67862]
[1723263757312,3.97,2604.8,2604.7,3.83921]
[1723263757511,3.97,2604.8,2604.7,4.38921]
[1723263760839,3.97,2604.8,2604.7,5.212058]
[1723263761045,3.97,2605.1,2604.9,3.8389]
[1723263761227,3.97,2605.1,2605.0,0.55]
[1723263761935,3.97,2605.1,2605.0,4.38877]
[1723263762238,3.97,2605.4,2605.1,3.83853]
[1723263762446,3.97,2605.4,2605.2,0.55]
[1723263762941,3.97,2605.4,2605.0,0.55]
[1723263763136,7.8082,2605.4,2605.0,0.55]
[1723263763906,3.97,2605.4,2605.0,0.55]
[1723263764511,3.97,2605.4,2605.0,4.38869]
[1723263764819,3.97,2605.4,2605.0,0.55]
[1723263764820,7.80819,2605.4,2605.0,0.55]
[1723263765450,3.97,2605.4,2605.0,4.38873]
[1723263768410,3.97,2605.4,2605.0,0.55]
[1723263771043,3.97,2605.4,2605.0,4.38874]
[1723263771608,3.97,2605.4,2605.1,3.83862]
[1723263771818,3.97,2605.4,2605.2,0.55]
[1723263773605,3.97,2605.4,2605.0,0.55]
[1723263774511,3.97,2605.4,2605.0,4.38875]
[1723263775424,3.97,2605.4,2605.0,0.55]
[1723263776048,3.97,2605.4,2605.1,3.83854]
[1723263776207,3.97,2605.4,2605.2,0.55]
[1723263776926,3.97,2605.4,2605.0,0.55]
[1723263777847,3.97,2605.4,2605.0,4.38876]
[1723263779911,7.8082,2605.4,2605.0,0.55]
[1723263781549,3.97,2605.1,2605.0,0.55]
[1723263781752,3.97,2605.1,2604.8,0.55]
[1723263781932,3.97,2605.1,2604.5,3.83942]
[1723263781933,5.362631,2605.1,2604.5,3.83942]
[1723263782255,3.97,2604.8,2604.5,3.83942]
[1723263783558,3.97,2604.8,2604.6,0.55]
[1723263783925,3.97,2604.8,2604.3,10.00472]
[1723263783926,3.97,2604.8,2604.4,3.55]
[1723263784122,7.80907,2604.8,2604.3,2.3253]
[1723263784335,8.589977,2604.8,2604.2,3.83987]
[1723263785585,3.83921,2604.7,2604.3,0.55]
[1723263785791,12.429127,2604.8,2604.3,0.55]
[1723263786104,2.2794,2604.7,2604.3,0.55]
[1723263786402,6.11866,2604.7,2604.3,0.55]
[1723263786605,3.83936,2604.6,2604.3,0.55]
[1723263786894,2.2794,2604.7,2603.8,3.84044]
[1723263786895,3.83965,2604.4,2603.8,3.84044]
[1723263787077,3.84012,2604.1,2603.6,6.16604]
[1723263787268,3.84012,2604.1,2603.6,2.3253]
[1723263787592,3.84012,2604.1,2603.5,3.84095]
[1723263787794,3.84033,2604.0,2603.4,10.00737]
[1723263787996,3.84033,2604.0,2603.4,6.16632]
[1723263788202,3.97,2603.9,2603.4,10.00735]
[1723263788398,3.97,2603.9,2603.4,6.16632]
[1723263788708,7.8104,2603.9,2603.4,2.3253]
[1723263788896,3.84061,2603.8,2603.2,7.68266]
[1723263789067,3.84061,2603.8,2603.2,8.066794]
[1723263789254,7.8104,2603.9,2603.3,3.84125]
[1723263789562,14.8122348,2603.9,2603.3,3.84119]
[1723263790078,3.84062,2603.8,2603.2,4.225464]
[1723263790279,3.84062,2603.8,2603.3,3.0]
[1723263790659,10.9717348,2603.9,2603.3,6.84124]
[1723263791056,1.09717348,2603.8,2603.3,6.84124]
[1723263791389,10.0898,2603.9,2603.4,0.55]
[1723263791595,10.0898,2603.9,2603.4,4.39113]
[1723263793121,10.0898,2603.9,2603.4,0.55]
[1723263793826,13.93028,2603.9,2603.4,0.55]
[1723263794190,10.0898,2603.9,2603.4,0.55]
[1723263794810,6.2494,2603.9,2603.4,4.39108]
[1723263795016,2.2794,2604.1,2603.5,2.3253]
[1723263795214,2.2794,2604.3,2603.6,4.46756117]
[1723263795399,6.83908,2604.8,2603.6,4.46756117]
[1723263795400,3.97,2604.2,2603.6,4.46756117]
[1723263795602,3.97,2604.2,2603.7,0.67928612]
[1723263795800,3.97,2604.2,2603.8,4.39053]
[1723263798712,3.97,2604.2,2603.9,6.16567]
[1723263798888,3.97,2604.5,2604.1,3.84009]
[1723263800099,3.97,2604.5,2604.0,3.8402]
[1723263800419,3.97,2604.5,2604.0,3.84015]
[1723263800626,3.97,2604.5,2604.0,4.511695]
[1723263800827,3.97,2604.5,2604.1,3.84006]
[1723263801611,7.80951,2604.5,2604.0,8.351845]
[1723263801941,3.97,2604.5,2604.1,0.55]
[1723263802839,7.80954,2604.5,2604.1,0.55]
[1723263803035,9.547434,2604.5,2604.0,4.39022]
[1723263803403,13.387064,2604.5,2604.0,0.55]
[1723263803745,9.547434,2604.5,2604.0,0.55]
[1723263805604,13.387034,2604.5,2604.0,0.55]
[1723263805804,9.547434,2604.5,2604.0,0.55]
[1723263806735,13.4087,2604.7,2604.0,8.23029]
[1723263806736,3.83936,2604.6,2604.0,8.23029]
[1723263806905,3.97,2604.5,2604.0,8.23029]
[1723263807101,3.97,2604.5,2604.0,4.39014]
[1723263807305,9.5694,2604.7,2604.2,3.83981]
[1723263807517,3.97,2604.6,2604.2,3.83981]
[1723263808660,3.97,2604.6,2604.3,3.83976]
[1723263808956,9.5694,2604.7,2604.3,3.83976]
[1723263808957,7.29,2604.7,2604.3,3.83976]
[1723263809248,11.26,2604.7,2604.3,3.83976]
[1723263811115,11.26,2604.7,2604.3,7.67948]
[1723263811321,15.09929,2604.7,2604.0,0.55]
[1723263811541,18.081509,2604.7,2604.1,7.68002]
[1723263811860,18.081509,2604.7,2604.2,0.55]
[1723263813164,10.791509,2604.7,2604.2,0.55]
[1723263813363,7.80929,2604.7,2604.2,0.55]
[1723263814963,3.83945,2604.6,2604.2,0.55]
[1723263815173,3.83952,2604.5,2604.1,0.55]
[1723263815677,7.8097,2604.4,2604.1,0.55]
[1723263815980,3.97,2604.4,2604.0,0.55]
[1723263816781,3.97,2604.4,2604.0,4.39024]
[1723263816986,7.80967,2604.4,2604.0,0.55]
[1723263818083,3.84034,2604.0,2603.5,3.84087]
[1723263819085,3.84039,2603.9,2603.3,7.68234]
[1723263819579,3.84039,2603.9,2603.4,4.39109]
[1723263819780,3.97,2603.8,2603.3,3.84115]
[1723263820279,7.81057,2603.8,2603.3,3.84115]
[1723263820488,3.97,2603.8,2603.3,3.84115]
[1723263820684,3.97,2603.8,2603.1,6.84145]
[1723263820862,3.97,2603.8,2603.2,8.274475]
[1723263820863,3.84071,2603.7,2603.2,8.274475]
[1723263821063,3.97,2603.8,2603.2,8.274475]
[1723263821376,3.97,2603.8,2603.3,3.84126]
[1723263821543,3.97,2603.8,2603.4,0.55]
[1723263821949,3.97,2603.8,2603.6,3.84079]
[1723263822150,3.97,2604.1,2603.6,7.047012]
[1723263822349,3.97,2604.1,2603.7,0.55]
[1723263822611,7.8101,2604.1,2603.7,0.55]
[1723263823610,2.3907,2604.0,2603.7,0.55]
[1723263823785,2.3907,2604.0,2603.6,0.55]
[1723263824173,6.23094,2604.0,2603.6,0.55]
[1723263825104,2.3907,2604.0,2603.6,4.3907]
[1723263825304,3.97,2604.1,2603.6,4.3907]
[1723263828902,3.97,2604.1,2603.6,8.23144]
[1723263829105,3.97,2604.1,2603.6,4.3907]
[1723263829630,3.97,2604.1,2603.7,3.84063]
[1723263829829,3.97,2604.1,2603.6,8.23145]
[1723263830626,3.97,2604.1,2603.6,4.3907]
[1723263831434,7.81011,2604.1,2603.6,0.55]
[1723263832129,2.3907,2603.8,2603.4,3.84108]
[1723263832445,12.670491,2604.1,2603.5,0.55]
[1723263832615,3.84034,2604.0,2603.5,0.55]
[1723263833295,3.84034,2604.0,2603.5,4.39093]
[1723263833498,3.84034,2604.0,2603.5,1.373198]
[1723263835332,10.20089,2604.1,2603.5,0.55]
[1723263835531,3.8404,2603.9,2603.5,0.55]
[1723263836042,6.23151,2603.7,2603.2,6.84132]
[1723263836233,7.251661,2603.7,2603.2,6.84132]
[1723263836410,6.23151,2603.7,2603.2,6.84132]
[1723263837230,6.23151,2603.7,2603.2,10.68266]
[1723263837431,6.23151,2603.7,2603.2,6.84132]
[1723263837791,1.659,2603.3,2603.2,6.84132]
[1723263837997,1.659,2603.3,2603.2,11.23274]
[1723263838305,1.659,2603.3,2603.2,12.594324]
[1723263838509,2.3907,2603.9,2603.4,3.84103]
[1723263838841,2.3907,2603.9,2603.5,3.84094]
[1723263840140,2.3907,2603.9,2603.4,3.84103]
[1723263840321,1.659,2603.5,2603.2,12.594194]
[1723263840638,6.23109,2603.9,2603.3,4.39119]
[1723263840837,6.23109,2603.9,2603.3,5.8889054]
[1723263841666,6.23109,2603.9,2603.4,3.84111]
[1723263841969,1.659,2603.5,2603.4,7.68224]
[1723263842136,3.84018,2604.1,2603.6,3.84081]
[1723263842330,7.68038,2604.1,2603.7,0.384081]
[1723263842547,3.84018,2604.1,2603.4,6.26679]
[1723263842726,3.84018,2604.1,2603.5,0.55]
[1723263843260,7.68041,2604.1,2603.5,4.39093]
[1723263843437,3.84018,2604.1,2603.5,4.39093]
[1723263844046,3.84018,2604.1,2603.6,3.84078]
[1723263844356,1.659,2603.7,2603.6,3.84078]
[1723263844552,1.659,2603.7,2603.6,4.906531]
[1723263846961,1.659,2603.7,2603.6,1.065751]
[1723263847254,1.659,2603.7,2603.5,4.39093]
[1723263850259,1.659,2603.7,2603.5,0.55]
[1723263850463,1.659,2603.7,2603.4,0.55]
[1723263850670,1.659,2603.5,2603.4,4.39104]
[1723263853566,1.659,2603.5,2603.2,6.84132]
[1723263853766,1.659,2603.5,2603.4,3.84113]
[1723263855469,1.659,2603.5,2603.4,7.68226]
[1723263855768,1.659,2603.5,2603.4,10.65806]
[1723263857472,7.29,2604.1,2603.4,2.9758]
[1723263857637,7.29,2604.1,2603.8,3.84045]
[1723263857834,7.29,2604.1,2603.8,6.650295]
[1723263858047,7.29,2604.1,2603.9,0.55]
[1723263858562,7.29,2604.1,2603.8,0.55]
[1723263858873,1.659,2603.9,2603.8,0.55]
[1723263859376,1.659,2603.9,2603.5,6.26675]
[1723263859670,6.21054,2604.0,2603.6,0.55]
[1723263859883,1.659,2603.7,2603.6,0.55]
[1723263861051,1.659,2603.7,2603.6,4.39083]
[1723263861466,1.659,2603.7,2603.6,0.55]
[1723263862976,1.659,2603.7,2603.5,1.1034492]
[1723263864842,1.659,2603.7,2603.4,3.84103]
[1723263865075,3.84039,2603.9,2603.5,0.55]
[1723263865385,3.84054,2603.8,2603.5,0.55]
[1723263865570,3.84054,2603.8,2603.4,0.55]
[1723263865745,1.659,2603.5,2603.4,0.55]
[1723263865945,1.659,2603.5,2603.4,4.39113]
[1723263866257,1.659,2603.5,2603.4,5.514375]
[1723263875756,1.659,2603.5,2603.3,3.84126]
[1723263877902,2.3806,2603.6,2603.3,3.84126]
[1723263878057,1.659,2603.4,2603.3,3.84126]
[1723263878258,1.659,2603.4,2603.3,7.39126]
[1723263882512,1.659,2603.4,2603.3,3.55]
[1723263885616,1.659,2603.4,2603.3,7.39127]
[1723263886530,1.659,2603.4,2603.3,12.587491]
[1723263887236,1.659,2603.6,2603.4,3.84105]
[1723263887729,1.659,2603.6,2603.5,3.84098]
[1723263887899,1.659,2603.6,2603.3,11.2324]
[1723263888099,1.659,2603.6,2603.5,3.84098]
[1723263889242,1.659,2603.6,2603.5,4.39098]
[1723263891240,1.659,2603.6,2603.5,8.23196]
[1723263891540,1.659,2603.6,2603.5,4.39098]
[1723263895196,1.659,2603.6,2603.5,0.55]
[1723263895401,1.659,2603.6,2603.4,4.39109]
[1723263900331,1.659,2603.6,2603.4,0.55]
[1723263900738,2.2788,2603.5,2602.7,2.3382]
[1723263901042,1.659,2603.4,2603.2,3.84134]
[1723263901608,1.659,2603.4,2603.2,7.68267]
[1723263902242,1.659,2603.4,2603.3,0.05585599]
[1723263902458,1.659,2603.4,2603.3,3.89712599]
[1723263902613,1.659,2603.4,2603.3,3.84127]
[1723263902809,1.659,2603.4,2603.3,3.89712599]
[1723263903440,1.659,2603.4,2603.3,4.44712599]
[1723263904546,1.659,2603.4,2603.3,0.60585599]
[1723263904711,1.659,2603.4,2603.3,4.44712599]
[1723263906532,1.659,2603.4,2603.3,0.60585599]
[1723263907610,1.659,2603.4,2603.3,4.44712599]
[1723263911708,2.3317,2603.7,2603.3,9.11724159]
[1723263911915,9.6217,2604.0,2603.5,3.84087]
[1723263912115,1.659,2603.6,2603.5,3.84087]
[1723263912345,1.659,2603.6,2603.5,4.39087]
[1723263917736,1.659,2603.6,2603.4,3.84103]
[1723263917932,3.9907,2603.6,2603.4,3.84103]
[1723263918147,3.9907,2603.6,2603.2,3.84134]
[1723263918148,3.9907,2603.6,2603.3,3.84126]
[1723263918344,1.659,2603.4,2603.3,3.84126]
[1723263918657,1.659,2603.4,2603.3,0.55]
[1723263919734,1.659,2603.4,2603.0,3.84162]
[1723263920050,1.659,2603.2,2603.1,3.55]
[1723263925370,1.659,2603.2,2603.1,7.39157]
[1723263927175,1.659,2603.2,2603.1,7.42517039]
[1723263928054,1.659,2603.2,2603.1,3.03360039]
[1723263928672,2.3317,2603.6,2603.4,3.84111]
[1723263928873,1.659,2603.7,2603.6,3.84082]
[1723263929589,1.659,2603.7,2603.6,3.87802522]
[1723263931161,1.659,2603.7,2603.6,4.64993874]
[1723263932455,7.29,2604.1,2604.0,3.84024]
[1723263932456,8.949,2604.1,2604.0,3.84024]
[1723263932803,2.4392,2604.5,2604.0,4.39024]
[1723263933098,1.659,2604.2,2604.1,0.55]
[1723263933305,1.659,2604.2,2604.0,0.03691016]
[1723263933505,2.4392,2604.1,2604.0,0.03691016]
[1723263933658,2.4392,2604.1,2603.6,8.16262352]
[1723263933659,3.233015,2604.1,2603.4,3.841]
[1723263933852,2.4392,2604.0,2603.5,0.55]
[1723263934054,6.9868265,2604.0,2603.5,0.55]
[1723263934283,1.659,2603.6,2603.5,4.39098]
[1723263935992,1.659,2603.6,2603.5,8.23196]
[1723263936191,1.659,2603.8,2603.7,3.84064]
[1723263936356,1.659,2603.8,2603.7,4.39064]
[1723263937086,1.659,2603.8,2603.7,0.55]
[1723263937483,4.0982,2603.8,2603.7,0.0368234]
[1723263938770,4.0982,2603.8,2603.5,0.55]
[1723263939078,1.659,2603.6,2603.5,0.55]
[1723263942905,2.3819,2603.5,2602.9,2.4054]
[1723263943076,1.659,2603.1,2603.0,3.84164]
[1723263944264,1.659,2603.1,2603.0,4.39164]
[1723263946566,1.659,2603.3,2603.1,3.84155]
[1723263950067,1.659,2603.3,2603.1,3.84155]
[1723263950903,1.659,2603.3,2603.0,0.55]
[1723263951104,1.659,2603.3,2603.0,4.39171]
[1723263951403,1.659,2603.3,2603.1,3.84153]
[1723263951603,1.659,2603.3,2603.1,3.84148]
[1723263952300,1.659,2603.3,2603.2,3.84142]
[1723263952510,3.84063,2603.8,2603.2,3.84142]
[1723263952511,2.3819,2603.8,2603.4,3.84111]
[1723263952725,1.659,2603.5,2603.4,3.84111]
[1723263952919,1.659,2603.5,2603.4,4.39111]
[1723263953116,1.659,2603.5,2603.2,3.84133]
[1723263953299,1.659,2603.5,2603.3,0.55]
[1723263954389,1.659,2603.5,2603.3,4.39124]
[1723263955813,2.3819,2603.8,2603.4,3.84113]
[1723263955987,2.3819,2603.8,2603.5,3.84097]
[1723263956175,1.659,2603.7,2603.6,3.84073]
[1723263956596,1.659,2603.7,2603.5,7.68186]
[1723263956802,1.659,2603.7,2603.5,3.84089]
[1723263960482,1.659,2603.7,2603.5,3.84087]
[1723263961781,1.659,2603.7,2603.5,7.68177]
[1723263962009,1.659,2603.7,2603.5,7.68173]
[1723263962203,2.3819,2604.1,2603.7,3.84063]
[1723263962425,1.659,2603.8,2603.7,3.84068]
[1723263962585,1.659,2603.8,2603.7,4.39068]
[1723263962796,1.659,2603.8,2603.7,5.076058]
[1723263962999,1.659,2603.8,2603.7,8.916738]
[1723263963197,1.659,2603.8,2603.7,5.076058]
[1723263964817,1.659,2603.8,2603.7,8.916738]
[1723263965234,1.659,2603.8,2603.7,5.076058]
[1723263966158,9.7665,2604.3,2604.0,3.84015]
[1723263966478,3.83793,2605.6,2604.3,3.8398]
[1723263966479,1.659,2604.4,2604.3,3.8398]